bitfinex/quotes_ETHUSD_20251008
["timestamp","ask_amount","ask_price","bid_price","bid_amount"]
[1759932835543,0.1104,4500.4,4500.3,0.02222074]
[1759932835742,0.0012,4500.7,4500.3,0.49252074]
[1759932835941,0.0012,4500.7,4500.2,0.2951033]
[1759932835942,0.0012,4500.7,4500.5,2.22196795]
[1759932836245,0.0012,4500.7,4500.4,2.22199104]
[1759932836754,0.0012,4500.7,4500.5,0.4703]
[1759932836958,0.0012,4500.7,4500.5,0.49251975]
[1759932837255,0.0012,4500.7,4500.6,2.69222596]
[1759932837457,0.0012,4500.7,4500.6,3.18587102]
[1759932837656,0.0012,4500.7,4500.6,0.96394506]
[1759932837860,0.0012,4500.7,4500.2,0.2951033]
[1759932838031,0.0012,4500.7,4500.3,2.22206287]
[1759932838353,0.0012,4500.7,4500.1,0.02322172]
[1759932838563,0.0012,4500.7,4500.1,0.001]
[1759932838766,0.0012,4500.7,4500.1,0.02322172]
[1759932838969,0.0012,4500.7,4500.2,2.22212123]
[1759932839125,0.0012,4500.7,4500.3,2.24426571]
[1759932839327,0.0012,4500.7,4500.4,2.22202022]
[1759932839560,0.0012,4500.7,4500.5,0.02221975]
[1759932839758,0.0012,4500.7,4500.4,0.4703]
[1759932840440,0.0012,4500.7,4500.5,0.02221975]
[1759932840638,0.0012,4500.7,4500.1,0.001]
[1759932841044,2.22206465,4500.4,4500.1,0.001]
[1759932841245,2.22192596,4500.6,4500.1,0.001]
[1759932841560,2.22212346,4500.2,4500.1,0.001]
[1759932842078,2.95592346,4500.2,4500.1,0.001]
[1759932842234,5.08385457,4500.2,4500.1,0.001]
[1759932842433,5.56287504,4500.2,4500.1,0.001]
[1759932842635,6.5913418,4500.2,4500.1,0.001]
[1759932842947,7.80866668,4500.2,4500.1,0.001]
[1759932843254,9.57349523,4500.2,4500.1,0.001]
[1759932843734,9.78115739,4500.2,4500.1,0.001]
[1759932843933,10.37239773,4500.2,4500.1,0.001]
[1759932844182,9.93517131,4500.2,4500.1,0.001]
[1759932844334,9.34393097,4500.2,4500.1,0.001]
[1759932845230,6.77993097,4500.2,4500.1,0.001]
[1759932845435,0.47902047,4500.2,4500.1,0.001]
[1759932845755,2.564,4500.3,4500.1,0.001]
[1759932846550,0.0012,4500.7,4500.2,0.4703]
[1759932846751,0.0012,4500.7,4500.3,0.02222074]
[1759932847069,0.0012,4500.7,4500.1,0.001]
[1759932847441,0.0012,4500.7,4500.2,0.26935708]
[1759932848038,0.0012,4500.7,4500.1,0.001]
[1759932848039,0.0012,4500.7,4500.3,0.49252074]
[1759932848238,0.0012,4500.7,4500.4,2.69230788]
[1759932848478,0.0012,4500.7,4500.5,2.24419036]
[1759932848677,0.0012,4500.7,4500.6,2.22192596]
[1759932848862,0.0012,4500.7,4500.6,2.69222596]
[1759932849169,0.0012,4500.7,4500.6,2.96367053]
[1759932849360,0.0012,4500.7,4500.6,0.27144457]
[1759932849556,0.0012,4500.7,4500.2,2.2220836]
[1759932849761,0.0012,4500.7,4500.1,0.001]
[1759932850668,0.0012,4500.7,4500.1,0.7066]
[1759932850871,0.0012,4500.7,4500.2,0.02222123]
[1759932851076,0.0012,4500.7,4500.1,0.7066]
[1759932851369,0.0012,4500.7,4500.1,2.92877194]
[1759932851543,0.0012,4500.7,4500.3,2.22206457]
[1759932851739,0.0012,4500.7,4500.4,0.02222024]
[1759932851974,0.0012,4500.7,4500.6,2.22192596]
[1759932852566,0.0012,4500.7,4500.6,0.4703]
[1759932852797,0.0012,4500.7,4500.2,4.78507999]
[1759932852948,0.0012,4500.7,4500.6,0.4703]
[1759932854543,0.0012,4500.7,4500.6,2.71444521]
[1759932855565,0.0012,4500.7,4500.6,2.69222596]
[1759932855754,0.0012,4500.7,4500.6,5.27744521]
[1759932855954,0.0012,4500.7,4500.6,5.25522596]
[1759932856162,0.0012,4500.7,4500.6,3.49486553]
[1759932856352,0.0012,4500.7,4500.6,6.05786553]
[1759932857073,0.002,4501.2,4500.6,4.57993957]
[1759932857270,0.002,4501.2,4500.7,3.0239]
[1759932857445,0.002,4501.2,4501.1,4.77527914]
[1759932857640,0.002,4501.2,4501.1,5.58538233]
[1759932857843,0.002,4501.7,4501.5,0.6336]
[1759932858142,0.002,4501.7,4501.4,2.22150773]
[1759932858143,0.002,4501.7,4501.6,4.25183237]
[1759932858343,0.002,4501.7,4501.6,6.81383237]
[1759932858572,0.002,4501.7,4501.6,4.72213237]
[1759932858788,0.002,4501.7,4501.6,7.9784964]
[1759932859313,0.002,4501.7,4501.6,9.04789867]
[1759932860327,0.002,4501.7,4501.6,6.48589867]
[1759932860501,0.002,4501.7,4501.6,9.04789867]
[1759932860885,1e-08,4501.9,4501.8,2.85493368]
[1759932861084,1e-08,4501.9,4501.8,6.11607025]
[1759932861285,1e-08,4501.9,4501.8,6.56415692]
[1759932862008,1e-08,4501.9,4501.8,9.12615692]
[1759932863972,1e-08,4501.9,4501.8,5.93055692]
[1759932864180,1e-08,4501.9,4501.8,8.49155692]
[1759932864385,0.00920001,4502.9,4501.8,1.78922324]
[1759932864713,0.00920001,4502.9,4502.3,2.22106635]
[1759932864919,0.00920001,4502.9,4502.4,4.80419916]
[1759932865087,0.00920001,4502.9,4502.4,2.561]
[1759932865282,0.00920001,4502.9,4502.5,0.49330988]
[1759932865599,0.00920001,4502.9,4502.6,2.22093033]
[1759932865801,0.00920001,4502.9,4502.7,2.58320889]
[1759932866217,0.00920001,4502.9,4502.8,2.561]
[1759932866715,0.00920001,4502.9,4502.8,2.5832084]
[1759932866912,0.00920001,4502.9,4502.4,0.4711]
[1759932867112,0.00920001,4502.9,4502.5,3.05430988]
[1759932867317,0.00920001,4502.9,4502.5,3.0321]
[1759932867517,0.00920001,4502.9,4502.5,2.561]
[1759932867935,0.00920001,4502.9,4501.8,0.2365]
[1759932868101,2.22084488,4502.8,4501.9,2.304]
[1759932868420,0.00920001,4502.9,4501.9,4.52528387]
[1759932868621,2.22999563,4502.9,4502.0,2.561]
[1759932868819,0.00920001,4502.9,4502.0,2.2212273]
[1759932869007,0.00920001,4502.9,4502.1,2.561]
[1759932869821,0.00920001,4502.9,4500.2,2.22208036]
[1759932869822,2.22088055,4502.8,4501.6,2.22139295]
[1759932870021,2.22088055,4502.8,4501.3,0.4711]
[1759932870022,0.101,4502.8,4501.4,1.92]
[1759932870223,0.00920001,4502.9,4500.9,0.4711]
[1759932870224,14.56648145,4502.7,4500.9,0.4711]
[1759932870520,2.22132571,4501.9,4500.9,2.9671]
[1759932870690,3.77950716,4502.6,4500.9,2.9671]
[1759932870890,2.22098833,4502.5,4500.9,2.9671]
[1759932871120,2.22113633,4502.2,4500.4,2.2220247]
[1759932871323,0.6336,4502.5,4500.7,2.561]
[1759932871613,2.22108699,4502.3,4500.7,2.561]
[1759932871818,2.22152198,4501.5,4500.7,2.561]
[1759932872190,0.1016,4501.5,4500.1,0.011]
[1759932872393,2.3230842,4501.5,4500.1,0.011]
[1759932872588,2.22184812,4500.8,4500.1,0.011]
[1759932872991,2.22174473,4501.0,4500.1,0.011]
[1759932873220,2.22180679,4500.9,4500.1,0.011]
[1759932873412,0.1016,4501.1,4500.1,0.011]
[1759932873413,2.22183094,4500.8,4500.1,0.011]
[1759932873617,2.22197376,4500.6,4500.1,0.011]
[1759932873926,2.22212346,4500.2,4500.1,0.011]
[1759932874831,2.32372346,4500.2,4500.1,0.011]
[1759932875006,2.78319738,4500.6,4500.1,0.011]
[1759932875200,0.1016,4501.3,4500.1,0.011]
[1759932875398,2.22198649,4500.5,4500.1,0.011]
[1759932875599,1.92,4501.1,4500.1,0.011]
[1759932876342,0.1016,4501.5,4500.1,0.011]
[1759932876503,0.1104,4500.4,4500.1,0.011]
[1759932876898,2.22194976,4500.6,4500.1,0.011]
[1759932877118,2.22188514,4500.7,4500.1,0.011]
[1759932877325,0.1016,4501.1,4500.1,0.011]
[1759932877518,2.22179425,4500.9,4500.1,0.011]
[1759932878032,0.1016,4501.1,4500.1,0.011]
[1759932878199,0.20216,4501.0,4500.1,0.011]
[1759932878600,2.22212346,4500.2,4500.1,0.011]
[1759932879138,2.32372346,4500.2,4500.1,0.011]
[1759932879702,2.95732346,4500.2,4500.1,0.011]
[1759932880701,4.87732346,4500.2,4500.1,0.011]
[1759932881018,5.84335839,4500.2,4500.1,0.011]
[1759932881526,5.84335839,4500.2,4500.1,1e-08]
[1759932882027,2.90185288,4501.4,4500.1,1e-08]
[1759932882231,2.32372346,4500.2,4500.1,1e-08]
[1759932882398,5.51832346,4500.2,4500.1,1e-08]
[1759932882601,3.2962,4500.2,4500.1,1e-08]
[1759932882927,5.51832346,4500.2,4500.1,1e-08]
[1759932883717,4.88472346,4500.2,4500.1,1e-08]
[1759932884017,2.15722426,4500.2,4500.1,1e-08]
[1759932884219,2.561,4500.2,4500.1,1e-08]
[1759932884402,4.78312346,4500.2,4500.1,1e-08]
[1759932884604,4.88472346,4500.2,4500.1,1e-08]
[1759932885007,6.80472346,4500.2,4500.1,1e-08]
[1759932885208,22.9169143,4500.2,4500.1,1e-08]
[1759932886921,9.05649391,4500.2,4500.1,1e-08]
[1759932887127,6.80472346,4500.2,4500.1,1e-08]
[1759932887326,6.70232346,4500.2,4500.1,1e-08]
[1759932887521,6.80392346,4500.2,4500.1,1e-08]
[1759932889323,6.70232346,4500.2,4500.1,1e-08]
[1759932889727,6.80392346,4500.2,4500.1,1e-08]
[1759932889926,7.70652117,4500.2,4500.1,1e-08]
[1759932890130,1.92,4500.7,4500.1,1e-08]
[1759932890440,2.561,4500.6,4500.1,1e-08]
[1759932890636,2.22192596,4500.6,4500.1,1e-08]
[1759932890818,2.561,4500.7,4500.1,1e-08]
[1759932891224,2.22212346,4500.2,4500.1,1e-08]
[1759932891421,5.23770117,4500.2,4500.1,1e-08]
[1759932891746,7.89290117,4500.2,4500.1,1e-08]
[1759932895749,7.89290117,4500.2,4500.1,0.00100001]
[1759932896477,4.69830117,4500.2,4500.1,0.00100001]
[1759932896678,6.80472346,4500.2,4500.1,0.00100001]
[1759932897182,2.22392875,4500.6,4500.1,0.00100001]
[1759932897346,2.561,4500.5,4500.1,0.00100001]
[1759932897543,2.22208529,4500.3,4500.1,0.00100001]
[1759932897958,2.32363549,4500.4,4500.1,0.00100001]
[1759932898155,2.22212346,4500.2,4500.1,0.00100001]
[1759932898672,5.59539936,4500.2,4500.1,0.00100001]
[1759932899121,8.14899936,4500.2,4500.1,0.00100001]
[1759932899264,8.83435504,4500.2,4500.1,0.00100001]
[1759932899449,8.83435505,4500.2,4500.1,0.00100001]
[1759932900173,4.77577284,4500.1,4499.6,0.001]
[1759932900366,4.77577284,4500.1,4499.1,0.01]
[1759932900367,2.22261735,4499.2,4499.1,0.01]
[1759932900544,5.46897304,4499.2,4499.1,0.01]
[1759932900745,2.22261735,4499.2,4499.1,0.01]
[1759932900945,4.78361735,4499.2,4499.1,0.01]
[1759932901163,6.25677106,4499.2,4499.1,0.01]
[1759932901382,6.46436001,4499.2,4499.1,0.01]
[1759932901747,7.09796001,4499.2,4499.1,0.01]
[1759932901947,7.0980842,4499.2,4499.1,0.01]
[1759932902357,1.68086685,4499.2,4499.1,0.01]
[1759932902678,4.78361735,4499.2,4499.1,0.01]
[1759932902979,4.88571735,4499.2,4499.1,0.01]
[1759932903157,0.47863899,4499.2,4499.1,0.01]
[1759932903359,0.47863899,4499.8,4499.1,0.01]
[1759932903679,4.78338869,4499.7,4499.1,0.4406]
[1759932903883,2.22246916,4499.5,4499.1,0.01]
[1759932904182,2.22261735,4499.2,4499.1,0.01]
[1759932904747,2.561,4499.2,4499.1,0.01]
[1759932905046,4.78361735,4499.2,4499.1,0.01]
[1759932905252,4.88611735,4499.2,4499.1,0.01]
[1759932905678,5.57266802,4499.2,4499.1,0.01]
[1759932905860,6.38017452,4499.2,4499.1,0.01]
[1759932906064,5.7960968,4499.2,4499.1,0.01]
[1759932906780,20.9767082,4499.2,4499.1,0.01]
[1759932906956,20.9767082,4499.2,4498.1,0.01]
[1759932906957,0.744,4499.1,4498.1,0.01]
[1759932907157,18.00353185,4498.2,4498.1,0.01]
[1759932907371,23.27386097,4498.2,4498.1,0.01]
[1759932907579,23.37636097,4498.2,4498.1,0.01]
[1759932908476,2.22360579,4497.2,4496.1,0.01]
[1759932908676,2.561,4497.2,4496.1,0.01]
[1759932908880,0.3173,4497.8,4496.5,2.22394874]
[1759932909049,0.3173,4497.8,4496.1,0.03224149]
[1759932909050,0.2205,4498.2,4496.7,2.22381412]
[1759932909276,0.2205,4498.2,4496.1,0.01]
[1759932909277,1.92,4498.0,4496.8,0.45283803]
[1759932909472,2.22325974,4497.9,4496.8,0.45283803]
[1759932909705,2.22355825,4497.3,4496.4,2.2240012]
[1759932909976,2.22355825,4497.3,4496.3,0.4306]
[1759932909977,2.561,4497.3,4496.3,0.4306]
[1759932910175,2.561,4497.3,4496.1,0.01]
[1759932910176,2.22360579,4497.2,4496.1,0.01]
[1759932910394,2.92361973,4497.2,4496.1,0.01]
[1759932910598,3.02261973,4497.2,4496.1,0.01]
[1759932910775,3.50079518,4497.2,4496.1,0.01]
[1759932911201,3.70831977,4497.2,4496.1,0.01]
[1759932911504,5.62831977,4497.2,4496.1,0.01]
[1759932911808,2.22410035,4496.2,4496.1,0.01]
[1759932912002,4.78510035,4496.2,4496.1,0.01]
[1759932912208,4.88410035,4496.2,4496.1,0.01]
[1759932912607,0.099,4496.2,4496.1,0.01]
[1759932912810,4.88410035,4496.2,4496.1,0.01]
[1759932912988,5.39323013,4496.2,4496.1,0.01]
[1759932913875,7.94683013,4496.2,4496.1,0.01]
[1759932914076,8.63088139,4496.2,4495.1,0.01]
[1759932914278,4.29329512,4495.2,4495.1,0.01]
[1759932914472,9.09898247,4495.2,4495.1,0.01]
[1759932914677,9.19848247,4495.2,4495.1,0.01]
[1759932914878,9.19848655,4495.2,4495.1,0.01]
[1759932915716,7.79426283,4495.2,4495.1,0.01]
[1759932916215,2.561,4495.2,4495.1,0.01]
[1759932916398,0.1,4495.5,4495.1,0.01]
[1759932916587,2.561,4495.4,4495.1,0.01]
[1759932916907,0.50912978,4496.2,4495.1,0.01]
[1759932916908,2.562,4495.3,4495.1,0.01]
[1759932917087,2.562,4495.2,4495.1,0.01]
[1759932917488,0.1005,4496.3,4495.1,0.01]
[1759932917690,2.22419928,4496.0,4495.1,0.01]
[1759932918009,4.14429823,4495.8,4495.1,0.01]
[1759932918318,2.22459512,4495.2,4495.1,0.01]
[1759932918610,4.78659512,4495.2,4495.1,0.01]
[1759932919181,1.95171298,4498.7,4495.1,0.01]
[1759932919182,0.1005,4496.3,4495.1,0.01]
[1759932919382,0.1472,4496.8,4495.2,0.02224595]
[1759932919597,0.1112,4495.3,4495.1,0.01]
[1759932919800,0.1112,4495.3,4495.2,2.65519512]
[1759932920182,0.1112,4495.3,4495.2,0.4306]
[1759932920383,0.1112,4495.3,4495.1,0.01]
[1759932921491,4.89774612,4495.3,4495.1,0.01]
[1759932921896,2.22459512,4495.2,4495.1,0.01]
[1759932922094,3.38541476,4495.3,4495.1,0.01]
[1759932922095,2.6732,4495.3,4495.1,0.01]
[1759932922603,2.22459512,4495.2,4495.1,0.01]
[1759932922909,2.32549512,4495.2,4495.1,0.01]
[1759932924614,2.95909512,4495.2,4495.1,0.01]
[1759932924807,5.66477448,4495.2,4495.1,0.01]
[1759932925194,5.66477448,4495.2,4495.1,1e-08]
[1759932925395,2.5536,4495.1,4494.1,0.01]
[1759932925596,4.14509011,4494.2,4494.1,0.01]
[1759932925828,2.22509011,4494.2,4494.1,0.01]
[1759932926127,7.44500099,4494.2,4494.1,0.01]
[1759932927195,8.07860099,4494.2,4494.1,0.01]
[1759932927623,2.5536,4494.1,4492.1,0.01]
[1759932927794,2.37818532,4493.2,4492.1,0.01]
[1759932927995,4.94018532,4493.2,4492.1,0.01]
[1759932928327,3.27856987,4493.2,4492.3,2.2260307]
[1759932928513,2.562,4493.2,4492.4,0.02225981]
[1759932928716,2.22549334,4493.4,4492.5,2.2259225]
[1759932929023,0.1526,4494.0,4492.1,0.01]
[1759932929024,4.78758532,4493.2,4492.1,0.01]
[1759932929226,4.88718532,4493.2,4492.1,0.01]
[1759932929424,2.22544783,4493.5,4492.5,2.2259188]
[1759932929724,2.562,4493.4,4492.6,0.02225882]
[1759932929926,2.562,4493.3,4492.6,0.02225882]
[1759932932003,0.78567936,4495.2,4493.3,0.4658]
[1759932932222,2.22461771,4495.2,4493.4,0.02225486]
[1759932932528,0.44421223,4495.6,4494.2,2.22507002]
[1759932932720,0.5407,4495.9,4494.5,2.22493962]
[1759932932721,0.1101,4495.9,4494.5,2.22493962]
[1759932932921,0.1101,4495.9,4494.1,0.6798]
[1759932932922,2.563,4495.8,4494.6,0.02224892]
[1759932933100,2.82931,4495.7,4494.6,0.48804892]
[1759932933303,2.82931,4495.7,4494.9,2.22473262]
[1759932933534,0.0092,4495.9,4495.3,2.2245258]
[1759932933719,0.0092,4495.9,4495.8,2.22429823]
[1759932933926,0.0092,4495.9,4495.7,2.22432761]
[1759932934122,0.0092,4495.9,4495.7,0.4658]
[1759932934322,0.0092,4495.9,4495.8,2.71234121]
[1759932934524,0.0092,4495.9,4495.8,3.20601448]
[1759932935238,0.01,4497.9,4495.9,2.22424875]
[1759932935464,0.01,4497.9,4496.8,2.43780359]
[1759932935603,0.1104,4497.1,4496.8,2.43780359]
[1759932935808,0.1104,4497.1,4496.8,2.92584162]
[1759932936004,0.01,4497.9,4496.8,4.82360359]
[1759932936246,1e-08,4496.9,4496.8,6.52855196]
[1759932936535,1e-08,4496.9,4496.8,7.96855196]
[1759932936913,1e-08,4496.9,4496.8,6.52855196]
[1759932937314,0.01,4498.9,4497.2,2.22360579]
[1759932937516,0.01,4498.9,4498.8,0.214]
[1759932937828,2.22287713,4498.7,4497.6,4.78535959]
[1759932938000,2.22287713,4498.7,4497.3,2.91170649]
[1759932938001,2.22281497,4498.8,4497.3,0.68816058]
[1759932938205,2.22311604,4498.2,4497.3,0.4658]
[1759932938436,2.572,4498.9,4496.8,0.214]
[1759932938639,2.572,4498.9,4497.1,2.22363379]
[1759932938954,2.22316606,4498.1,4497.1,2.22363379]
[1759932939271,0.01,4498.9,4497.2,0.4658]
[1759932939480,0.01,4498.9,4496.8,0.214]
[1759932939481,2.562,4498.4,4496.8,0.214]
[1759932939636,2.22311146,4498.2,4496.7,2.22385118]
[1759932939955,0.2562,4498.3,4496.7,2.22382922]
[1759932940330,0.2562,4498.3,4496.8,0.02223803]
[1759932940553,2.22345041,4497.6,4496.6,2.68969661]
[1759932940750,2.22327481,4497.9,4496.6,2.68969661]
[1759932940751,2.2232601,4497.9,4496.6,0.4658]
[1759932940964,0.22232601,4497.8,4496.6,0.4658]
[1759932941168,0.22232601,4497.8,4496.8,2.22376782]
[1759932941670,0.2562,4498.3,4496.9,2.22370991]
[1759932941833,0.2562,4498.3,4496.7,2.22385304]
[1759932942029,2.22321646,4498.0,4497.0,2.22369749]
[1759932942369,2.2232732,4497.9,4497.0,2.22369749]
[1759932942525,2.561,4498.0,4497.0,2.22369749]
[1759932942726,2.22311146,4498.2,4497.2,2.22356091]
[1759932943051,2.561,4498.7,4497.3,0.4356]
[1759932943369,2.22287659,4498.7,4497.7,2.22335805]
[1759932943662,0.01,4498.9,4497.8,0.4356]
[1759932943843,0.01,4498.9,4497.9,2.2232152]
[1759932944156,0.01,4498.9,4497.3,0.4356]
[1759932944559,2.571,4498.9,4498.0,2.2231841]
[1759932944759,2.571,4498.9,4497.3,0.75749556]
[1759932944760,2.571,4498.9,4497.7,0.4356]
[1759932944964,2.571,4498.9,4497.3,0.29966]
[1759932945154,0.1044,4498.8,4496.9,2.22374086]
[1759932945348,0.1044,4498.8,4497.3,2.22354923]
[1759932945349,2.22307963,4498.3,4497.3,2.22354923]
[1759932945663,2.2231591,4498.2,4497.2,2.22356982]
[1759932946029,0.1044,4498.8,4497.1,2.22364699]
[1759932946367,2.22330386,4497.9,4496.8,0.4356]
[1759932946568,2.561,4498.0,4496.8,0.4356]
[1759932947167,2.561,4498.0,4496.4,0.214]
[1759932947366,0.1475,4497.9,4496.5,0.02223951]
[1759932947534,0.1104,4496.8,4496.7,2.22385222]
[1759932947737,0.1104,4496.8,4496.7,2.68169075]
[1759932948144,0.1104,4496.8,4496.7,3.19365457]
[1759932948438,4.7831522,4498.2,4497.2,2.2235697]
[1759932948635,2.22318669,4498.1,4497.3,0.02223556]
[1759932949130,2.22317324,4498.1,4497.3,0.02223556]
[1759932949538,0.1104,4497.3,4497.1,2.65925475]
[1759932949765,0.1104,4497.3,4497.2,2.22360579]
[1759932949956,0.1104,4497.3,4497.1,2.65925184]
[1759932950157,0.1104,4497.3,4496.5,0.546]
[1759932950333,0.1104,4496.7,4495.7,0.4356]
[1759932950539,0.1112,4496.3,4495.8,2.3354938]
[1759932950738,0.1112,4496.3,4495.9,2.22422268]
[1759932950950,0.1112,4496.3,4496.0,2.22417237]
[1759932951148,2.56,4497.3,4496.2,0.680441]
[1759932951346,2.56,4497.5,4496.6,2.2238783]
[1759932951566,4.78346851,4497.5,4496.7,0.02223853]
[1759932951769,0.70067777,4497.5,4496.7,0.45783853]
[1759932951970,4.78341402,4497.6,4496.8,2.22380183]
[1759932952171,0.002,4498.0,4496.9,0.02223754]
[1759932952467,2.22521786,4498.0,4497.1,2.22365435]
[1759932952674,2.22521786,4498.0,4497.2,0.02223605]
[1759932952675,0.002,4498.0,4497.2,0.02223605]
[1759932952852,0.002,4498.0,4497.5,2.22343958]
[1759932953047,0.002,4498.0,4497.6,0.45783408]
[1759932953250,0.002,4498.0,4497.6,2.68122545]
[1759932953455,0.002,4498.0,4497.7,0.4289]
[1759932953645,0.002,4498.0,4497.8,0.02223309]
[1759932953841,0.002,4498.0,4496.3,1.921]
[1759932954042,0.002,4498.0,4496.5,0.4289]
[1759932954282,0.002,4498.0,4496.6,0.02223902]
[1759932954496,0.002,4498.0,4497.9,2.22325974]
[1759932954662,0.002,4498.0,4497.9,2.24549233]
[1759932954981,0.002,4498.0,4497.9,3.12127571]
[1759932956301,0.002,4498.0,4497.9,3.09904312]
[1759932956593,0.0012,4498.0,4497.9,3.09904312]
[1759932958029,0.0012,4498.0,4497.9,2.65215974]
[1759932958496,0.0012,4498.0,4497.9,2.67439233]
[1759932958701,0.0012,4498.0,4497.9,2.65215974]
[1759932958857,0.0012,4498.0,4496.1,0.01]
[1759932959057,0.0012,4498.0,4496.9,0.4289]
[1759932959290,0.0012,4498.0,4497.3,2.22355002]
[1759932959462,0.0012,4498.0,4497.4,0.02223506]
[1759932959799,0.0012,4498.0,4497.1,2.9879]
[1759932960100,0.0012,4498.0,4497.1,0.4289]
[1759932960301,0.0012,4498.0,4496.6,1.92]
[1759932960302,2.22328493,4497.9,4496.9,2.559]
[1759932960593,0.0012,4498.0,4496.9,2.85779]
[1759932960798,0.0012,4498.0,4497.0,0.45113704]
[1759932961095,0.0012,4498.0,4497.9,2.22325974]
[1759932961477,0.0012,4498.0,4497.9,2.67439233]
[1759932962277,0.0012,4498.0,4497.9,2.65215974]
[1759932962594,0.0012,4498.0,4497.9,3.42888297]
[1759932963265,0.0012,4498.0,4497.9,3.40665038]
[1759932963595,0.0012,4498.0,4497.9,3.42888297]
[1759932964288,0.0012,4498.0,4497.9,0.4289]
[1759932964667,0.0012,4498.0,4497.2,0.1104]
[1759932964997,0.1104,4497.2,4496.9,2.559]
[1759932965198,0.1104,4497.2,4496.6,0.4289]
[1759932965542,0.0012,4498.0,4496.6,0.4289]
[1759932965543,0.20890549,4498.0,4496.6,0.4289]
[1759932965676,2.2237291,4497.0,4496.3,0.001]
[1759932966002,0.22237291,4497.0,4496.3,0.001]
[1759932966301,0.47875188,4497.7,4496.4,0.4289]
[1759932966596,0.47875188,4497.7,4496.6,2.2239025]
[1759932966597,2.22336663,4497.7,4496.6,2.2239025]
[1759932966763,0.0012,4498.0,4496.4,0.4289]
[1759932966965,0.0012,4498.0,4496.3,0.001]
[1759932966966,2.22367304,4497.1,4496.3,0.001]
[1759932967224,0.0995,4497.5,4496.3,0.001]
[1759932967508,2.22380388,4496.8,4496.3,0.001]
[1759932967710,0.0995,4497.5,4496.3,0.001]
[1759932967866,2.12773542,4497.8,4496.4,0.4289]
[1759932968068,0.48359715,4497.7,4496.5,0.02223951]
[1759932968267,0.0012,4498.0,4496.6,0.45113902]
[1759932968475,0.0012,4498.0,4497.4,2.22349102]
[1759932968698,0.0012,4498.0,4497.5,0.02223457]
[1759932968900,0.0012,4498.0,4497.5,2.24568989]
[1759932969208,0.0012,4498.0,4497.9,2.22325974]
[1759932969422,0.0012,4498.0,4497.9,2.73304416]
[1759932969634,0.0012,4498.0,4497.9,3.16194416]
[1759932971438,0.0012,4498.0,4497.9,3.13971157]
[1759932972142,0.0012,4498.0,4497.9,2.65215974]
[1759932972839,0.0012,4498.0,4497.9,2.67439233]
[1759932973242,0.0012,4498.0,4497.9,2.65215974]
[1759932974149,0.0012,4498.0,4497.9,0.4289]
[1759932974440,0.0012,4498.0,4497.2,0.4289]
[1759932974653,0.0012,4498.0,4497.6,2.2233969]
[1759932974856,0.0012,4498.0,4497.5,2.558]
[1759932975036,0.0012,4498.0,4497.7,0.02223358]
[1759932975239,0.0012,4498.0,4497.9,2.22325974]
[1759932975425,0.0012,4498.0,4497.9,2.24549233]
[1759932975624,0.01,4498.9,4498.8,2.22281497]
[1759932976227,0.01,4498.9,4498.6,4.78088611]
[1759932976228,0.01,4498.9,4498.6,2.558]
[1759932976522,0.01,4498.9,4498.7,0.4289]
[1759932976728,0.01,4498.9,4498.6,2.22286671]
[1759932976933,0.01,4498.9,4498.7,0.4289]
[1759932977319,0.01,4498.9,4498.8,0.4289]
[1759932977743,0.01,4498.9,4498.5,2.558]
[1759932977956,0.01,4498.9,4498.6,2.22289191]
[1759932978142,0.01,4498.9,4498.6,0.4289]
[1759932978321,0.01,4498.9,4498.8,2.22281497]
[1759932978754,0.01,4498.9,4498.8,2.65171497]
[1759932979343,0.0092,4498.9,4498.8,3.41720104]
[1759932979748,0.0092,4498.9,4498.8,3.3949729]
[1759932979952,0.0092,4498.9,4498.8,2.65171497]
[1759932980628,0.0092,4498.9,4498.8,2.67394311]
[1759932981348,0.0092,4498.9,4498.8,2.65171497]
[1759932981530,0.0092,4498.9,4498.8,2.78434311]
[1759932981730,0.0092,4498.9,4498.8,2.76211497]
[1759932981944,0.0092,4498.9,4498.8,3.40601714]
[1759932982146,0.0092,4498.9,4498.8,5.20971497]
[1759932984456,0.0092,4498.9,4498.8,5.84331497]
[1759932986068,0.0092,4498.9,4498.8,5.20971497]
[1759932986279,0.0092,4498.9,4498.8,2.65171497]
[1759932986662,0.0092,4498.9,4498.8,5.20871497]
[1759932986993,0.0092,4498.9,4498.8,5.95187714]
[1759932987201,0.0092,4498.9,4498.8,3.72906217]
[1759932987496,0.0092,4498.9,4498.8,5.24681497]
[1759932987982,0.0092,4498.9,4498.8,0.467]
[1759932988186,0.0092,4498.9,4498.8,2.557]
[1759932988761,0.0092,4498.9,4498.8,5.24681497]
[1759932988961,0.0092,4498.9,4498.8,5.99378623]
[1759932989849,0.0092,4498.9,4498.8,5.99478623]
[1759932990284,0.0112,4498.9,4498.8,5.99478623]
[1759932990990,0.0112,4498.9,4498.8,6.62838623]
[1759932991204,0.0112,4498.9,4498.8,8.54838623]
[1759932991354,0.002,4499.2,4499.1,0.6336]
[1759932991560,0.002,4499.2,4499.1,3.74418388]
[1759932991781,0.002,4499.2,4499.1,6.76818388]
[1759932991987,0.002,4499.2,4499.1,8.79858388]
[1759932992198,0.01,4499.9,4499.2,1.92]
[1759932992510,1e-08,4499.9,4499.8,4.88632099]
[1759932992662,1e-08,4499.9,4499.8,8.15419236]
[1759932992863,1e-08,4499.9,4499.8,8.62119236]
[1759932994804,1e-08,4499.9,4499.8,8.62019236]
[1759932997418,1e-08,4499.9,4499.8,8.50979236]
[1759932997711,1e-08,4499.9,4499.8,8.62019236]
[1759932999301,1e-08,4499.9,4499.8,8.50979236]
[1759932999714,1e-08,4499.9,4499.8,5.95379236]
[1759932999918,1e-08,4499.9,4499.8,8.50979236]
[1759933000810,0.002,4500.6,4500.5,4.77557533]